lending/lending_fUSD_20240710
["ID","MTS","AMOUNT","RATE_DAILY","PERIOD"]
[331626749,1720591849518,-530.22,0.00013698,2]
[331626750,1720591849528,-1334.1,0.00013698,2]
[331626751,1720591849539,-940.1,0.00013698,2]
[331626752,1720591849550,-500.0,0.00013698,2]
[331626753,1720591849559,-2974.56,0.00013698,2]
[331626754,1720591849568,-151.0,0.00013698,2]
[331626755,1720591849578,-719.98,0.00013698,2]
[331626756,1720591849589,-151.0,0.00013698,2]
[331626757,1720591849599,-1323.92,0.00013698,2]
[331626758,1720591849608,-500.0,0.00013698,2]
[331626759,1720591849619,-500.0,0.00013698,2]
[331626760,1720591849628,-500.0,0.00013698,2]
[331626761,1720591849638,-500.0,0.00013698,2]
[331626762,1720591849647,-1114.0,0.00013698,2]
[331626763,1720591849657,-771.94,0.00013698,2]
[331626764,1720591849666,-151.0,0.00013698,2]
[331626765,1720591849676,-644.92,0.00013698,2]
[331626766,1720591849687,-500.0,0.00013698,2]
[331626767,1720591849696,-155.131981,0.00013698,2]
[331626768,1720591849706,-896.83,0.00013698,2]
[331626769,1720591849715,-500.0,0.00013698,2]
[331626770,1720591849724,-1975.51,0.00013698,2]
[331626771,1720591849734,-1560.6,0.00013698,2]
[331626772,1720591849743,-500.0,0.00013698,2]
[331626773,1720591849753,-500.0,0.00013698,2]
[331626774,1720591849763,-890.06,0.00013698,2]
[331626775,1720591849772,-1846.44,0.00013698,2]
[331626776,1720591849781,-1208.23,0.00013698,2]
[331626777,1720591849790,-500.0,0.00013698,2]
[331626778,1720591849800,-500.0,0.00013698,2]
[331626779,1720591849809,-500.0,0.00013698,2]
[331626780,1720591849820,-500.0,0.00013698,2]
[331626781,1720591849828,-884.9,0.00013698,2]
[331626782,1720591849838,-500.0,0.00013698,2]
[331626783,1720591849847,-500.0,0.00013698,2]
[331626784,1720591849857,-500.0,0.00013698,2]
[331626785,1720591849866,-500.0,0.00013698,2]
[331626786,1720591849876,-2064.65,0.00013698,2]
[331626787,1720591849885,-500.0,0.00013698,2]
[331626788,1720591849894,-500.0,0.00013698,2]
[331626789,1720591849903,-500.0,0.00013698,2]
[331626790,1720591849913,-500.0,0.00013698,2]
[331626791,1720591849922,-151.0,0.00013698,2]
[331626792,1720591849932,-151.0,0.00013698,2]
[331626793,1720591849941,-2218.34,0.00013698,2]
[331626794,1720591849951,-500.0,0.00013698,2]
[331626795,1720591849960,-836.83,0.00013698,2]
[331626796,1720591849970,-500.0,0.00013698,2]
[331626797,1720591849979,-1169.75,0.00013698,2]
[331626798,1720591849989,-500.0,0.00013698,2]
[331626799,1720591849998,-1028.11,0.00013698,2]
[331626800,1720591850007,-500.0,0.00013698,2]
[331626801,1720591850016,-151.0,0.00013698,2]
[331626802,1720591850025,-151.0,0.00013698,2]
[331626803,1720591850035,-500.0,0.00013698,2]
[331626804,1720591850044,-1068.9,0.00013698,2]
[331626805,1720591850053,-500.0,0.00013698,2]
[331626806,1720591850062,-647.92,0.00013698,2]
[331626807,1720591850071,-500.0,0.00013698,2]
[331626808,1720591850081,-1857.64,0.00013698,2]
[331626809,1720591850092,-500.0,0.00013698,2]
[331626810,1720591850102,-500.0,0.00013698,2]
[331626811,1720591850112,-500.0,0.00013698,2]
[331626812,1720591850121,-917.91,0.00013698,2]
[331626813,1720591850131,-151.0,0.00013698,2]
[331626814,1720591850140,-151.0,0.00013698,2]
[331626815,1720591850149,-500.0,0.00013698,2]
[331626816,1720591850159,-151.0,0.00013698,2]
[331626817,1720591850168,-151.0,0.00013698,2]
[331626818,1720591850177,-1873.28,0.00013698,2]
[331626819,1720591850186,-500.0,0.00013698,2]
[331626820,1720591850195,-500.0,0.00013698,2]
[331626821,1720591850205,-581.94,0.00013698,2]
[331626822,1720591850216,-207.02474124,0.00013698,2]
[331626823,1720591850228,-151.0,0.00013698,2]
[331626824,1720591850237,-1221.73,0.00013698,2]
[331626825,1720591850246,-151.0,0.00013698,2]
[331626826,1720591850257,-500.0,0.00013698,2]
[331626827,1720591850266,-500.0,0.00013698,2]
[331626828,1720591850275,-500.0,0.00013698,2]
[331626829,1720591850284,-500.0,0.00013698,2]
[331626830,1720591850294,-500.0,0.00013698,2]
[331626831,1720591850303,-578.83,0.00013698,2]
[331626832,1720591850312,-577.81,0.00013698,2]
[331626833,1720591850322,-710.82,0.00013698,2]
[331626834,1720591850331,-500.0,0.00013698,2]
[331626835,1720591850340,-647.69,0.00013698,2]
[331626836,1720591850349,-575.4,0.00013698,2]
[331626837,1720591850358,-500.0,0.00013698,2]
[331626838,1720591850367,-836.33,0.00013698,2]
[331626839,1720591850376,-500.0,0.00013698,2]
[331626840,1720591850385,-634.68,0.00013698,2]
[331626841,1720591850395,-500.0,0.00013698,2]
[331626842,1720591850404,-500.0,0.00013698,2]
[331626843,1720591850413,-902.3,0.00013698,2]
[331626844,1720591850422,-500.0,0.00013698,2]
[331626845,1720591850432,-500.0,0.00013698,2]
[331626846,1720591850445,-500.0,0.00013698,2]
[331626847,1720591850454,-500.0,0.00013698,2]
[331626848,1720591850464,-500.0,0.00013698,2]
[331626849,1720591850474,-542.22,0.00013698,2]
[331626850,1720591850483,-500.0,0.00013698,2]
[331626851,1720591850492,-151.0,0.00013698,2]
[331626852,1720591850502,-500.0,0.00013698,2]
[331626853,1720591850512,-500.0,0.00013698,2]
[331626854,1720591850522,-1123.01,0.00013698,2]
[331626855,1720591850531,-151.0,0.00013698,2]
[331626856,1720591850542,-500.0,0.00013698,2]
[331626857,1720591850551,-1239.2,0.00013698,2]
[331626858,1720591850561,-2496.81,0.00013698,2]
[331626859,1720591850571,-560.43,0.00013698,2]
[331626860,1720591850580,-500.0,0.00013698,2]
[331626861,1720591850589,-500.0,0.00013698,2]
[331626862,1720591850599,-500.0,0.00013698,2]
[331626863,1720591850608,-151.0,0.00013698,2]
[331626864,1720591850617,-500.0,0.00013698,2]
[331626865,1720591850627,-151.0,0.00013698,2]
[331626866,1720591850636,-820.37,0.00013698,2]
[331626867,1720591850646,-500.0,0.00013698,2]
[331626868,1720591850655,-500.0,0.00013698,2]
[331626869,1720591850664,-500.0,0.00013698,2]
[331626870,1720591850674,-500.0,0.00013698,2]
[331626871,1720591850684,-500.0,0.00013698,2]
[331626872,1720591850693,-500.0,0.00013698,2]
[331626873,1720591850703,-500.0,0.00013698,2]
[331626874,1720591850712,-500.0,0.00013698,2]
[331626875,1720591850721,-643.37,0.00013698,2]
[331626876,1720591850730,-444.41052867,0.00013698,2]
[331626877,1720591850740,-500.0,0.00013698,2]
[331626878,1720591850749,-633.14,0.00013698,2]
[331626879,1720591850759,-500.0,0.00013698,2]
[331626880,1720591850769,-500.0,0.00013698,2]
[331626881,1720591850779,-500.0,0.00013698,2]
[331626882,1720591850789,-500.0,0.00013698,2]
[331626883,1720591850799,-500.0,0.00013698,2]
[331626884,1720591850808,-898.82,0.00013698,2]
[331626885,1720591850819,-258.47249,0.00013698,2]
[331626886,1720591850828,-500.0,0.00013698,2]
[331626887,1720591850838,-569.22,0.00013698,2]
[331626888,1720591850847,-971.0,0.00013698,2]
[331626889,1720591850856,-500.0,0.00013698,2]
[331626890,1720591850866,-500.0,0.00013698,2]
[331626891,1720591850876,-500.0,0.00013698,2]
[331626892,1720591850886,-1876.5,0.00013698,2]
[331626893,1720591850896,-939.23,0.00013698,2]
[331626894,1720591850907,-795.97,0.00013698,2]
[331626895,1720591850916,-500.0,0.00013698,2]
[331626896,1720591850926,-500.0,0.00013698,2]
[331626897,1720591850936,-1374.33,0.00013698,2]
[331626898,1720591850945,-500.0,0.00013698,2]
[331626899,1720591850954,-500.0,0.00013698,2]
[331626900,1720591850964,-754.72,0.00013698,2]
[331626901,1720591850973,-500.0,0.00013698,2]
[331626902,1720591850982,-151.0,0.00013698,2]
[331626903,1720591850991,-151.0,0.00013698,2]
[331626904,1720591851000,-500.0,0.00013698,2]
[331626905,1720591851011,-500.0,0.00013698,2]
[331626906,1720591851020,-500.0,0.00013698,2]
[331626907,1720591851030,-151.0,0.00013698,2]
[331626908,1720591851040,-2028.25,0.00013698,2]
[331626909,1720591851051,-151.0,0.00013698,2]
[331626910,1720591851061,-500.0,0.00013698,2]
[331626911,1720591851071,-176.835849,0.00013698,2]
[331626912,1720591851081,-859.94,0.00013698,2]
[331626913,1720591851092,-500.0,0.00013698,2]
[331626914,1720591851101,-500.0,0.00013698,2]
[331626915,1720591851111,-500.0,0.00013698,2]
[331626916,1720591851122,-354.11228036,0.00013698,2]
[331626917,1720591851131,-588.21,0.00013698,2]
[331626918,1720591851140,-151.0,0.00013698,2]
[331626919,1720591851149,-151.0,0.00013698,2]
[331626920,1720591851158,-581.29,0.00013698,2]
[331626921,1720591851167,-500.0,0.00013698,2]
[331626922,1720591851177,-500.0,0.00013698,2]
[331626923,1720591851187,-500.0,0.00013698,2]
[331626924,1720591851196,-500.0,0.00013698,2]
[331626925,1720591851205,-739.55,0.00013698,2]
[331626926,1720591851214,-500.0,0.00013698,2]
[331626927,1720591851224,-1260.47,0.00013698,2]
[331626928,1720591851233,-524.37,0.00013698,2]
[331626929,1720591851243,-559.67,0.00013698,2]
[331626930,1720591851252,-500.0,0.00013698,2]
[331626931,1720591851261,-739.28,0.00013698,2]
[331626932,1720591851270,-576.91,0.00013698,2]
[331626933,1720591851280,-555.16,0.00013698,2]
[331626934,1720591851289,-161.01409596,0.00013698,2]
[331626935,1720591851299,-500.0,0.00013698,2]
[331626936,1720591851308,-500.0,0.00013698,2]
[331626937,1720591851317,-500.0,0.00013698,2]
[331626938,1720591851327,-719.11,0.00013698,2]
[331626939,1720591851336,-500.0,0.00013698,2]
[331626940,1720591851345,-500.0,0.00013698,2]
[331626941,1720591851355,-503.0,0.00013698,2]
[331626942,1720591851365,-939.43,0.00013698,2]
[331626943,1720591851375,-513.19,0.00013698,2]
[331626944,1720591851384,-500.0,0.00013698,2]
[331626945,1720591851393,-988.73,0.00013698,2]
[331626946,1720591851402,-1488.77,0.00013698,2]
[331626947,1720591851411,-500.0,0.00013698,2]
[331626948,1720591851421,-658.41,0.00013698,2]
[331626949,1720591851431,-500.58,0.00013698,2]
[331626950,1720591851441,-500.0,0.00013698,2]
[331626951,1720591851451,-1641.29,0.00013698,2]
[331626952,1720591851461,-548.24,0.00013698,2]
[331626953,1720591851470,-500.0,0.00013698,2]
[331626954,1720591851479,-592.57,0.00013698,2]
[331626955,1720591851489,-655.64,0.00013698,2]
[331626956,1720591851499,-500.0,0.00013698,2]
[331626957,1720591851508,-559.53,0.00013698,2]
[331626958,1720591851517,-741.4,0.00013698,2]
[331626959,1720591851529,-655.06,0.00013698,2]
[331626960,1720591851539,-500.0,0.00013698,2]
[331626961,1720591851549,-500.0,0.00013698,2]
[331626962,1720591851560,-2189.73,0.00013698,2]
[331626963,1720591851569,-151.0,0.00013698,2]
[331626964,1720591851578,-160.912299,0.00013698,2]
[331626965,1720591851587,-500.0,0.00013698,2]
[331626966,1720591851596,-500.0,0.00013698,2]
[331626967,1720591851606,-500.0,0.00013698,2]
[331626968,1720591851615,-400.20086639,0.00013698,2]
[331626969,1720591851624,-500.0,0.00013698,2]
[331626970,1720591851634,-151.0,0.00013698,2]
[331626971,1720591851643,-151.0,0.00013698,2]
[331626972,1720591851652,-713.52,0.00013698,2]
[331626973,1720591851661,-500.0,0.00013698,2]
[331626974,1720591851671,-500.0,0.00013698,2]
[331626975,1720591851680,-283.560171,0.00013698,2]
[331626976,1720591851689,-500.0,0.00013698,2]
[331626977,1720591851698,-500.0,0.00013698,2]
[331626978,1720591851707,-753.06,0.00013698,2]
[331626979,1720591851716,-500.0,0.00013698,2]
[331626980,1720591851726,-283.560171,0.00013698,2]
[331626981,1720591851734,-500.0,0.00013698,2]
[331626982,1720591851744,-500.0,0.00013698,2]
[331626983,1720591851753,-643.95,0.00013698,2]
[331626984,1720591851762,-1117.08,0.00013698,2]
[331626985,1720591851771,-500.0,0.00013698,2]
[331626986,1720591851780,-500.0,0.00013698,2]
[331626987,1720591851789,-500.0,0.00013698,2]
[331626988,1720591851798,-500.0,0.00013698,2]
[331626989,1720591851807,-283.560171,0.00013698,2]
[331626990,1720591851818,-283.560171,0.00013698,2]
[331626991,1720591851828,-1735.34,0.00013698,2]
[331626992,1720591851837,-554.78,0.00013698,2]
[331626993,1720591851846,-500.0,0.00013698,2]
[331626994,1720591851856,-500.0,0.00013698,2]
[331626995,1720591851866,-500.0,0.00013698,2]
[331626996,1720591851875,-500.0,0.00013698,2]
[331626997,1720591851884,-1013.69,0.00013698,2]
[331626998,1720591851893,-1201.88,0.00013698,2]
[331626999,1720591851903,-500.0,0.00013698,2]
[331627000,1720591851912,-1688.97,0.00013698,2]
[331627001,1720591851921,-756.9,0.00013698,2]
[331627002,1720591851931,-500.0,0.00013698,2]
[331627003,1720591851940,-1022.15,0.00013698,2]
[331627004,1720591851949,-378.00445828,0.00013698,2]
[331627005,1720591851959,-500.0,0.00013698,2]
[331627006,1720591851968,-765.17,0.00013698,2]
[331627007,1720591851978,-500.0,0.00013698,2]
[331627008,1720591851987,-500.0,0.00013698,2]
[331627009,1720591851996,-500.0,0.00013698,2]
[331627010,1720591852006,-151.0,0.00013698,2]
[331627011,1720591852015,-151.0,0.00013698,2]
[331627012,1720591852024,-1610.04,0.00013698,2]
[331627013,1720591852034,-500.0,0.00013698,2]
[331627014,1720591852043,-500.0,0.00013698,2]
[331627015,1720591852052,-879.09,0.00013698,2]
[331627016,1720591852061,-1453.58,0.00013698,2]
[331627017,1720591852070,-2225.73,0.00013698,2]
[331627018,1720591852080,-500.0,0.00013698,2]
[331627019,1720591852091,-500.0,0.00013698,2]
[331627020,1720591852101,-500.0,0.00013698,2]
[331627021,1720591852111,-500.0,0.00013698,2]
[331627022,1720591852120,-601.74,0.00013698,2]
[331627023,1720591852129,-518.35,0.00013698,2]
[331627024,1720591852138,-592.84,0.00013698,2]
[331627025,1720591852147,-500.0,0.00013698,2]
[331627026,1720591852157,-500.0,0.00013698,2]
[331627027,1720591852166,-1625.29,0.00013698,2]
[331627028,1720591852175,-151.0,0.00013698,2]
[331627029,1720591852186,-500.0,0.00013698,2]
[331627030,1720591852196,-151.0,0.00013698,2]
[331627031,1720591852206,-500.0,0.00013698,2]
[331627032,1720591852217,-1099.02,0.00013698,2]
[331627033,1720591852226,-151.0,0.00013698,2]
[331627034,1720591852236,-151.0,0.00013698,2]
[331627035,1720591852245,-1842.48,0.00013698,2]
[331627036,1720591852255,-151.0,0.00013698,2]
[331627037,1720591852265,-1120.2,0.00013698,2]
[331627038,1720591852274,-151.0,0.00013698,2]
[331627039,1720591852284,-500.0,0.00013698,2]
[331627040,1720591852294,-500.0,0.00013698,2]
[331627041,1720591852303,-500.0,0.00013698,2]
[331627042,1720591852313,-1111.45,0.00013698,2]
[331627043,1720591852322,-500.0,0.00013698,2]
[331627044,1720591852331,-151.0,0.00013698,2]
[331627045,1720591852340,-151.0,0.00013698,2]
[331627046,1720591852349,-151.0,0.00013698,2]
[331627047,1720591852359,-500.0,0.00013698,2]
[331627048,1720591852368,-500.0,0.00013698,2]
[331627049,1720591852378,-310.215925,0.00013698,2]
[331627050,1720591852387,-533.95,0.00013698,2]
[331627051,1720591852396,-151.0,0.00013698,2]
[331627052,1720591852405,-500.0,0.00013698,2]
[331627053,1720591852414,-310.215925,0.00013698,2]
[331627054,1720591852424,-768.95,0.00013698,2]
[331627055,1720591852433,-500.0,0.00013698,2]
[331627056,1720591852442,-3168.8,0.00013698,2]
[331627057,1720591852451,-500.0,0.00013698,2]
[331627058,1720591852460,-1536.47,0.00013698,2]
[331627059,1720591852469,-500.0,0.00013698,2]
[331627060,1720591852479,-500.0,0.00013698,2]
[331627061,1720591852488,-500.0,0.00013698,2]
[331627062,1720591852498,-500.0,0.00013698,2]
[331627063,1720591852507,-500.0,0.00013698,2]
[331627064,1720591852516,-2870.65,0.00013698,2]
[331627065,1720591852525,-882.58,0.00013698,2]
[331627066,1720591852534,-638.44,0.00013698,2]
[331627067,1720591852543,-710.52,0.00013698,2]
[331627068,1720591852553,-1612.53,0.00013698,2]
[331627069,1720591852562,-500.0,0.00013698,2]
[331627070,1720591852571,-500.0,0.00013698,2]
[331627071,1720591852580,-151.0,0.00013698,2]
[331627072,1720591852589,-220.513943,0.00013698,2]
[331627073,1720591852599,-500.0,0.00013698,2]
[331627074,1720591852608,-634.19,0.00013698,2]
[331627075,1720591852617,-500.0,0.00013698,2]
[331627076,1720591852626,-1482.12,0.00013698,2]
[331627077,1720591852635,-151.0,0.00013698,2]
[331627078,1720591852645,-500.0,0.00013698,2]
[331627079,1720591852654,-153.744282,0.00013698,2]
[331627080,1720591852663,-500.0,0.00013698,2]
[331627081,1720591852672,-500.0,0.00013698,2]
[331627082,1720591852681,-500.0,0.00013698,2]
[331627083,1720591852690,-500.0,0.00013698,2]
[331627084,1720591852699,-804.13,0.00013698,2]
[331627085,1720591852709,-2959.09,0.00013698,2]
[331627086,1720591852718,-635.53,0.00013698,2]
[331627087,1720591852727,-598.92,0.00013698,2]
[331627088,1720591852736,-500.0,0.00013698,2]
[331627089,1720591852745,-500.0,0.00013698,2]
[331627090,1720591852754,-500.0,0.00013698,2]
[331627091,1720591852763,-577.2,0.00013698,2]
[331627092,1720591852773,-828.11,0.00013698,2]
[331627093,1720591852782,-500.0,0.00013698,2]
[331627094,1720591852791,-1322.1,0.00013698,2]
[331627095,1720591852800,-2119.02,0.00013698,2]
[331627096,1720591852810,-3405.01,0.00013698,2]
[331627097,1720591852819,-500.0,0.00013698,2]
[331627098,1720591852828,-500.0,0.00013698,2]
[331627099,1720591852838,-500.0,0.00013698,2]
[331627100,1720591852847,-151.0,0.00013698,2]
[331627101,1720591852856,-151.0,0.00013698,2]
[331627102,1720591852866,-500.0,0.00013698,2]
[331627103,1720591852875,-1320.78,0.00013698,2]
[331627104,1720591852884,-787.1,0.00013698,2]
[331627105,1720591852894,-500.0,0.00013698,2]
[331627106,1720591852904,-151.0,0.00013698,2]
[331627107,1720591852913,-151.0,0.00013698,2]
[331627108,1720591852923,-779.26,0.00013698,2]
[331627109,1720591852932,-500.0,0.00013698,2]
[331627110,1720591852942,-1167.61,0.00013698,2]
[331627111,1720591852951,-500.0,0.00013698,2]
[331627112,1720591852961,-500.0,0.00013698,2]
[331627113,1720591852971,-988.92,0.00013698,2]
[331627114,1720591852981,-500.0,0.00013698,2]
[331627115,1720591852990,-288.94414164,0.00013698,2]
[331627116,1720591852999,-500.0,0.00013698,2]
[331627117,1720591853008,-500.0,0.00013698,2]
[331627118,1720591853018,-838.08,0.00013698,2]
[331627119,1720591853028,-500.52,0.00013698,2]
[331627120,1720591853038,-1242.06,0.00013698,2]
[331627121,1720591853047,-500.0,0.00013698,2]
[331627122,1720591853056,-1676.52,0.00013698,2]
[331627123,1720591853066,-737.41,0.00013698,2]
[331627124,1720591853076,-600.69,0.00013698,2]
[331627125,1720591853086,-500.0,0.00013698,2]
[331627126,1720591853098,-1348.17,0.00013698,2]
[331627127,1720591853108,-500.0,0.00013698,2]
[331627128,1720591853118,-3266.4,0.00013698,2]
[331627129,1720591853128,-500.0,0.00013698,2]
[331627130,1720591853138,-151.0,0.00013698,2]
[331627131,1720591853148,-151.0,0.00013698,2]
[331627132,1720591853158,-500.0,0.00013698,2]
[331627133,1720591853168,-500.0,0.00013698,2]
[331627134,1720591853178,-500.0,0.00013698,2]
[331627135,1720591853187,-677.66,0.00013698,2]
[331627136,1720591853198,-1721.62,0.00013698,2]
[331627137,1720591853207,-584.63,0.00013698,2]
[331627138,1720591853216,-563.87,0.00013698,2]
[331627139,1720591853226,-726.55,0.00013698,2]
[331627140,1720591853235,-500.0,0.00013698,2]
[331627141,1720591853245,-500.0,0.00013698,2]
[331627142,1720591853255,-1290.66,0.00013698,2]
[331627143,1720591853265,-209.9919,0.00013698,2]
[331627144,1720591853275,-1487.97,0.00013698,2]
[331627145,1720591853285,-156.757454,0.00013698,2]
[331627146,1720591853295,-784.91,0.00013698,2]
[331627147,1720591853305,-578.62,0.00013698,2]
[331627148,1720591853315,-1716.09,0.00013698,2]
[331627149,1720591853326,-500.0,0.00013698,2]
[331627150,1720591853337,-500.0,0.00013698,2]
[331627151,1720591853347,-1116.81,0.00013698,2]
[331627152,1720591853357,-1073.09,0.00013698,2]
[331627153,1720591853367,-500.0,0.00013698,2]
[331627154,1720591853376,-151.0,0.00013698,2]
[331627155,1720591853387,-151.0,0.00013698,2]
[331627156,1720591853398,-500.0,0.00013698,2]
[331627157,1720591853409,-698.14,0.00013698,2]
[331627158,1720591853419,-500.0,0.00013698,2]
[331627159,1720591853429,-1873.7,0.00013698,2]
[331627160,1720591853439,-3079.99,0.00013698,2]
[331627161,1720591853448,-1437.78,0.00013698,2]
[331627162,1720591853459,-500.0,0.00013698,2]
[331627163,1720591853622,-151.0,0.00013698,2]
[331627164,1720591853633,-1311.63,0.00013698,2]
[331627165,1720591853643,-151.0,0.00013698,2]
[331627166,1720591853653,-500.0,0.00013698,2]
[331627167,1720591853663,-500.0,0.00013698,2]
[331627168,1720591853673,-641.34,0.00013698,2]
[331627169,1720591853683,-500.0,0.00013698,2]
[331627170,1720591853693,-535.77,0.00013698,2]
[331627171,1720591853703,-576.34,0.00013698,2]
[331627172,1720591853714,-2389.0,0.00013698,2]
[331627173,1720591853724,-1050.62,0.00013698,2]
[331627174,1720591853733,-151.0,0.00013698,2]
[331627175,1720591853743,-1005.3,0.00013698,2]
[331627176,1720591853752,-151.0,0.00013698,2]
[331627177,1720591853762,-500.0,0.00013698,2]
[331627178,1720591853772,-1222.54,0.00013698,2]
[331627179,1720591853782,-1595.12,0.00013698,2]
[331627180,1720591853792,-500.0,0.00013698,2]
[331627181,1720591853803,-974.92,0.00013698,2]
[331627182,1720591853813,-1042.44,0.00013698,2]
[331627183,1720591853824,-273.62517427,0.00013698,2]
[331627184,1720591853835,-1053.1,0.00013698,2]
[331627185,1720591853844,-636.29,0.00013698,2]
[331627186,1720591853854,-222.71762,0.00013698,2]
[331627187,1720591853865,-1158.65,0.00013698,2]
[331627188,1720591853875,-500.0,0.00013698,2]
[331627189,1720591853884,-811.95,0.00013698,2]
[331627190,1720591853894,-1371.48,0.00013698,2]
[331627191,1720591853904,-1677.87,0.00013698,2]
[331627192,1720591853914,-681.43,0.00013698,2]
[331627193,1720591853923,-500.0,0.00013698,2]
[331627194,1720591853933,-890.72,0.00013698,2]
[331627195,1720591853943,-877.62,0.00013698,2]
[331627196,1720591853953,-500.0,0.00013698,2]
[331627197,1720591853963,-500.0,0.00013698,2]
[331627198,1720591853973,-500.0,0.00013698,2]
[331627199,1720591853982,-2205.66,0.00013698,2]
[331627200,1720591853992,-1959.58,0.00013698,2]
[331627201,1720591854001,-500.0,0.00013698,2]
[331627202,1720591854011,-500.0,0.00013698,2]
[331627203,1720591854021,-716.72,0.00013698,2]
[331627204,1720591854031,-1975.49,0.00013698,2]
[331627205,1720591854041,-151.0,0.00013698,2]
[331627206,1720591854050,-2558.44,0.00013698,2]
[331627207,1720591854060,-500.0,0.00013698,2]
[331627208,1720591854070,-151.0,0.00013698,2]
[331627209,1720591854080,-500.0,0.00013698,2]
[331627210,1720591854090,-1976.77,0.00013698,2]
[331627211,1720591854100,-2147.45,0.00013698,2]
[331627212,1720591854111,-3099.39,0.00013698,2]
[331627213,1720591854120,-500.0,0.00013698,2]
[331627214,1720591854129,-500.0,0.00013698,2]
[331627215,1720591854139,-500.0,0.00013698,2]
[331627216,1720591854148,-500.0,0.00013698,2]
[331627217,1720591854158,-500.0,0.00013698,2]
[331627218,1720591854167,-151.0,0.00013698,2]
[331627219,1720591854177,-151.0,0.00013698,2]
[331627220,1720591854187,-675.15,0.00013698,2]
[331627221,1720591854197,-151.0,0.00013698,2]
[331627222,1720591854206,-564.59,0.00013698,2]
[331627223,1720591854216,-1033.2,0.00013698,2]
[331627224,1720591854225,-151.0,0.00013698,2]
[331627225,1720591854235,-972.37,0.00013698,2]
[331627226,1720591854245,-1719.08,0.00013698,2]
[331627227,1720591854254,-1111.58,0.00013698,2]
[331627228,1720591854264,-578.13,0.00013698,2]
[331627229,1720591854273,-500.0,0.00013698,2]
[331627230,1720591854283,-500.0,0.00013698,2]
[331627231,1720591854292,-1047.26,0.00013698,2]
[331627232,1720591854302,-151.0,0.00013698,2]
[331627233,1720591854312,-1113.46,0.00013698,2]
[331627234,1720591854322,-151.0,0.00013698,2]
[331627235,1720591854332,-497.1126265,0.00013698,2]
[331627236,1720591854342,-2607.34,0.00013698,2]
[331627237,1720591854351,-211.47869244,0.00013698,2]
[331627238,1720591854366,-500.0,0.00013698,2]
[331627239,1720591854384,-655.5,0.00013698,2]
[331627240,1720591854394,-1074.7,0.00013698,2]
[331627241,1720591854404,-601.0,0.00013698,2]
[331627242,1720591854413,-500.0,0.00013698,2]
[331627243,1720591854423,-500.0,0.00013698,2]
[331627244,1720591854432,-500.0,0.00013698,2]
[331627245,1720591854442,-2719.09,0.00013698,2]
[331627246,1720591854451,-1813.91,0.00013698,2]
[331627247,1720591854461,-2888.22,0.00013698,2]
[331627248,1720591854471,-500.0,0.00013698,2]